[Event "Titled Tuesday Blitz November 01 Late 2022"]
[White "Besedes, Danilo"]
[Black "Kilic, Eray"]
[WhiteFideId "946796"]
[BlackFideId "44517173"]
[WhiteElo "2352"]
[BlackElo "2328"]
[Result "0-1"]
[Round "04"]
[TimeControl "180+1"]
[Date "2022.11.01"]
[WhiteClock "0:00:01"]
[BlackClock "0:01:09"]

1. Nf3 {[%clk 0:03:00]}  Nf6 {[%clk 0:03:00]} 2. d3 {[%clk 0:03:00]}  g6 {[%clk 0:03:00]} 3. Bd2 {[%clk 0:02:59]}  d5 {[%clk 0:03:00]} 4. Bc3 {[%clk 0:03:00]}  Bg7 {[%clk 0:03:00]} 5. Nbd2 {[%clk 0:03:00]}  O-O {[%clk 0:03:00]} 6. e4 {[%clk 0:03:00]}  Nc6 {[%clk 0:02:59]} 7. exd5 {[%clk 0:02:59]}  Qxd5 {[%clk 0:03:00]} 8. g3 {[%clk 0:02:53]}  e5 {[%clk 0:02:58]} 9. Bg2 {[%clk 0:02:53]}  Qd6 {[%clk 0:02:53]} 10. O-O {[%clk 0:02:49]}  Be6 {[%clk 0:02:53]} 11. Re1 {[%clk 0:02:45]}  Nd5 {[%clk 0:02:50]} 12. Ne4 {[%clk 0:02:21]}  Nxc3 {[%clk 0:02:49]} 13. bxc3 {[%clk 0:02:21]}  Qe7 {[%clk 0:02:48]} 14. Rb1 {[%clk 0:02:18]}  Rab8 {[%clk 0:02:47]} 15. a4 {[%clk 0:02:16]}  Rfd8 {[%clk 0:02:46]} 16. Qc1 {[%clk 0:02:11]}  Bd5 {[%clk 0:02:44]} 17. Rb5 {[%clk 0:01:58]}  a6 {[%clk 0:02:42]} 18. Rb1 {[%clk 0:01:58]}  h6 {[%clk 0:02:39]} 19. Ned2 {[%clk 0:01:50]}  Qc5 {[%clk 0:02:37]} 20. c4 {[%clk 0:01:42]}  Be6 {[%clk 0:02:37]} 21. Ne4 {[%clk 0:01:34]}  Qa5 {[%clk 0:02:36]} 22. Qa3 {[%clk 0:01:31]}  Bf8 {[%clk 0:02:25]} 23. Qb3 {[%clk 0:01:19]}  b5 {[%clk 0:02:18]} 24. axb5 {[%clk 0:01:19]}  axb5 {[%clk 0:02:18]} 25. Ra1 {[%clk 0:00:23]}  bxc4 {[%clk 0:02:18]} 26. Qxb8 {[%clk 0:00:20]}  Qxe1+ {[%clk 0:02:03]} 27. Nxe1 {[%clk 0:00:19]}  Rxb8 {[%clk 0:02:04]} 28. Nf6+ {[%clk 0:00:19]}  Kg7 {[%clk 0:02:04]} 29. Nh5+ {[%clk 0:00:19]}  gxh5 {[%clk 0:02:04]} 30. Bxc6 {[%clk 0:00:19]}  c3 {[%clk 0:02:04]} 31. Kf1 {[%clk 0:00:13]}  Rb2 {[%clk 0:02:03]} 32. Ke2 {[%clk 0:00:12]}  Bc5 {[%clk 0:02:03]} 33. Ba4 {[%clk 0:00:11]}  Kf6 {[%clk 0:01:57]} 34. Nf3 {[%clk 0:00:10]}  Bg4 {[%clk 0:01:56]} 35. Bb3 {[%clk 0:00:09]}  Ke7 {[%clk 0:01:53]} 36. Ra5 {[%clk 0:00:09]}  Bd6 {[%clk 0:01:52]} 37. Ra4 {[%clk 0:00:09]}  f5 {[%clk 0:01:43]} 38. Ke3 {[%clk 0:00:08]}  Bc5+ {[%clk 0:01:18]} 39. d4 {[%clk 0:00:08]}  Bxf3 {[%clk 0:01:19]} 40. dxc5 {[%clk 0:00:07]}  Be4 {[%clk 0:01:17]} 41. Rc4 {[%clk 0:00:06]}  Bxc2 {[%clk 0:01:17]} 42. Bxc2 {[%clk 0:00:05]}  Rxc2 {[%clk 0:01:18]} 43. h4 {[%clk 0:00:03]}  Ke6 {[%clk 0:01:10]} 44. f3 {[%clk 0:00:01]}  Kd5 {[%clk 0:01:11]} 45. Kd3 {[%clk 0:00:01]}  Rf2 {[%clk 0:01:09]} 0-1


[Site "https://www.chess.com"]

[Event "Titled Tuesday Blitz November 01 Late 2022"]
[White "Bilan, Danila"]
[Black "Silvestre, Christian"]
[WhiteFideId "24161918"]
[BlackFideId "30956269"]
[WhiteElo "2203"]
[BlackElo "2352"]
[Result "1-0"]
[Round "04"]
[TimeControl "180+1"]
[Date "2022.11.02"]
[WhiteClock "0:00:46"]
[BlackClock "0:00:57"]

1. d4 {[%clk 0:03:00]}  Nf6 {[%clk 0:02:47]} 2. Nf3 {[%clk 0:03:00]}  g6 {[%clk 0:02:46]} 3. Bg5 {[%clk 0:03:00]}  Bg7 {[%clk 0:02:46]} 4. c3 {[%clk 0:03:00]}  d6 {[%clk 0:02:45]} 5. Nbd2 {[%clk 0:03:00]}  Nbd7 {[%clk 0:02:43]} 6. e4 {[%clk 0:03:00]}  h6 {[%clk 0:02:44]} 7. Bh4 {[%clk 0:03:01]}  e5 {[%clk 0:02:44]} 8. dxe5 {[%clk 0:03:00]}  Nxe5 {[%clk 0:02:42]} 9. Nxe5 {[%clk 0:03:00]}  dxe5 {[%clk 0:02:42]} 10. Qc2 {[%clk 0:03:01]}  Qe7 {[%clk 0:02:38]} 11. Bc4 {[%clk 0:02:59]}  O-O {[%clk 0:02:37]} 12. O-O {[%clk 0:02:59]}  Bd7 {[%clk 0:02:36]} 13. Rfe1 {[%clk 0:02:55]}  Bc6 {[%clk 0:02:36]} 14. f3 {[%clk 0:02:53]}  Rad8 {[%clk 0:02:34]} 15. Bf2 {[%clk 0:02:52]}  Nh5 {[%clk 0:02:27]} 16. Nf1 {[%clk 0:02:44]}  Nf4 {[%clk 0:02:22]} 17. Rad1 {[%clk 0:02:40]}  Qg5 {[%clk 0:02:19]} 18. Ne3 {[%clk 0:02:26]}  Nh3+ {[%clk 0:02:05]} 19. Kf1 {[%clk 0:02:24]}  Nxf2 {[%clk 0:02:05]} 20. Qxf2 {[%clk 0:02:25]}  Bf6 {[%clk 0:01:58]} 21. Rxd8 {[%clk 0:02:21]}  Rxd8 {[%clk 0:01:57]} 22. Bd5 {[%clk 0:02:16]}  Be7 {[%clk 0:01:56]} 23. Bxc6 {[%clk 0:02:06]}  bxc6 {[%clk 0:01:56]} 24. Nc4 {[%clk 0:02:04]}  Qf6 {[%clk 0:01:49]} 25. Qxa7 {[%clk 0:01:47]}  Qe6 {[%clk 0:01:47]} 26. b3 {[%clk 0:01:47]}  Rd3 {[%clk 0:01:46]} 27. Qxc7 {[%clk 0:01:41]}  Bh4 {[%clk 0:01:43]} 28. Rc1 {[%clk 0:01:24]}  Qf6 {[%clk 0:01:41]} 29. Qxe5 {[%clk 0:01:18]}  Rxf3+ {[%clk 0:01:39]} 30. Kg1 {[%clk 0:01:03]}  Bf2+ {[%clk 0:01:08]} 31. Kh1 {[%clk 0:01:01]}  Qh4 {[%clk 0:01:00]} 32. gxf3 {[%clk 0:00:54]}  Qh3 {[%clk 0:00:59]} 33. Qf4 {[%clk 0:00:47]}  g5 {[%clk 0:00:57]} 34. Qg4 {[%clk 0:00:46]} 1-0


[Site "https://www.chess.com"]

[Event "Titled Tuesday Blitz November 01 Late 2022"]
[White "Bogaudinov, Rushan"]
[Black "Aldokhin, Ivan"]
[WhiteFideId "4129288"]
[BlackFideId "24115720"]
[WhiteElo "1945"]
[BlackElo "2313"]
[Result "0-1"]
[Round "04"]
[TimeControl "180+1"]
[Date "2022.11.02"]
[WhiteClock "0:00:01"]
[BlackClock "0:00:05"]

1. e4 {[%clk 0:02:59]}  c5 {[%clk 0:03:00]} 2. Nf3 {[%clk 0:02:58]}  e6 {[%clk 0:03:01]} 3. g3 {[%clk 0:02:58]}  d5 {[%clk 0:03:00]} 4. exd5 {[%clk 0:02:56]}  exd5 {[%clk 0:03:01]} 5. Bg2 {[%clk 0:02:57]}  Nf6 {[%clk 0:03:01]} 6. O-O {[%clk 0:02:57]}  d4 {[%clk 0:03:02]} 7. Re1+ {[%clk 0:02:56]}  Be7 {[%clk 0:03:02]} 8. d3 {[%clk 0:02:51]}  O-O {[%clk 0:03:03]} 9. Nbd2 {[%clk 0:02:44]}  Nc6 {[%clk 0:03:03]} 10. Nc4 {[%clk 0:02:43]}  Bg4 {[%clk 0:03:03]} 11. h3 {[%clk 0:02:43]}  Bh5 {[%clk 0:03:04]} 12. g4 {[%clk 0:02:42]}  Bg6 {[%clk 0:03:04]} 13. Bf4 {[%clk 0:02:41]}  Nd5 {[%clk 0:03:03]} 14. Bg3 {[%clk 0:02:40]}  f5 {[%clk 0:02:55]} 15. Nfe5 {[%clk 0:02:12]}  f4 {[%clk 0:02:10]} 16. Bh2 {[%clk 0:02:01]}  Be8 {[%clk 0:02:05]} 17. Nxc6 {[%clk 0:01:57]}  bxc6 {[%clk 0:01:55]} 18. Qe2 {[%clk 0:01:54]}  Bh4 {[%clk 0:01:47]} 19. Bf3 {[%clk 0:01:43]}  Rc8 {[%clk 0:01:24]} 20. a3 {[%clk 0:01:18]}  Rc7 {[%clk 0:01:24]} 21. Qd2 {[%clk 0:01:16]}  Rcf7 {[%clk 0:01:13]} 22. Qa5 {[%clk 0:01:15]}  Bxf2+ {[%clk 0:00:54]} 23. Kxf2 {[%clk 0:01:12]}  Qh4+ {[%clk 0:00:54]} 24. Kg2 {[%clk 0:00:47]}  Ne3+ {[%clk 0:00:53]} 25. Nxe3 {[%clk 0:00:47]}  fxe3 {[%clk 0:00:50]} 26. Bg3 {[%clk 0:00:41]}  Qg5 {[%clk 0:00:31]} 27. Rf1 {[%clk 0:00:40]}  Rxf3 {[%clk 0:00:24]} 28. Rxf3 {[%clk 0:00:39]}  Rxf3 {[%clk 0:00:12]} 29. Kxf3 {[%clk 0:00:40]}  Qd5+ {[%clk 0:00:11]} 30. Ke2 {[%clk 0:00:20]}  Qg2+ {[%clk 0:00:12]} 31. Kd1 {[%clk 0:00:03]}  Qf3+ {[%clk 0:00:12]} 32. Kc1 {[%clk 0:00:02]}  Qxg3 {[%clk 0:00:11]} 33. b4 {[%clk 0:00:03]}  Qe1+ {[%clk 0:00:04]} 34. Kb2 {[%clk 0:00:03]}  Qc3+ {[%clk 0:00:04]} 35. Kb1 {[%clk 0:00:03]}  e2 {[%clk 0:00:04]} 36. Qd8 {[%clk 0:00:03]}  e1=Q+ {[%clk 0:00:04]} 37. Ka2 {[%clk 0:00:01]}  Qexa1# {[%clk 0:00:05]} 0-1


[Site "https://www.chess.com"]

[Event "Titled Tuesday Blitz November 01 Late 2022"]
[White "Bortnyk, Olexandr"]
[Black "Baskakov, Egor"]
[WhiteFideId "14120828"]
[BlackFideId "24197866"]
[WhiteElo "2723"]
[BlackElo "2211"]
[Result "1-0"]
[Round "04"]
[TimeControl "180+1"]
[Date "2022.11.01"]
[WhiteClock "0:00:45"]
[BlackClock "0:00:13"]

1. d4 {[%clk 0:02:59]}  Nf6 {[%clk 0:02:59]} 2. Nc3 {[%clk 0:02:56]}  d5 {[%clk 0:02:58]} 3. Bf4 {[%clk 0:02:57]}  g6 {[%clk 0:02:55]} 4. e3 {[%clk 0:02:57]}  Bg7 {[%clk 0:02:56]} 5. h4 {[%clk 0:02:57]}  h6 {[%clk 0:02:56]} 6. Nb5 {[%clk 0:02:57]}  Na6 {[%clk 0:02:55]} 7. Nf3 {[%clk 0:02:57]}  c6 {[%clk 0:02:55]} 8. Nc3 {[%clk 0:02:57]}  Nc7 {[%clk 0:02:56]} 9. Ne5 {[%clk 0:02:56]}  h5 {[%clk 0:02:52]} 10. Bd3 {[%clk 0:02:55]}  Ne6 {[%clk 0:02:51]} 11. Bg3 {[%clk 0:02:54]}  Nf8 {[%clk 0:02:47]} 12. Ne2 {[%clk 0:02:53]}  Ng4 {[%clk 0:02:47]} 13. Nf3 {[%clk 0:02:50]}  Nd7 {[%clk 0:02:45]} 14. c4 {[%clk 0:02:50]}  dxc4 {[%clk 0:02:43]} 15. Bxc4 {[%clk 0:02:50]}  e5 {[%clk 0:02:44]} 16. dxe5 {[%clk 0:02:48]}  Qa5+ {[%clk 0:02:44]} 17. Nc3 {[%clk 0:02:41]}  Ndxe5 {[%clk 0:02:44]} 18. Nxe5 {[%clk 0:02:34]}  Nxe5 {[%clk 0:02:44]} 19. Bb3 {[%clk 0:02:25]}  Bg4 {[%clk 0:02:36]} 20. Qc2 {[%clk 0:02:16]}  Rd8 {[%clk 0:02:26]} 21. O-O {[%clk 0:02:13]}  O-O {[%clk 0:02:26]} 22. Bxe5 {[%clk 0:02:04]}  Qxe5 {[%clk 0:02:23]} 23. Qxg6 {[%clk 0:02:04]}  Rd6 {[%clk 0:02:00]} 24. Qg5 {[%clk 0:02:02]}  Qxg5 {[%clk 0:01:48]} 25. hxg5 {[%clk 0:02:02]}  Rd2 {[%clk 0:01:48]} 26. g6 {[%clk 0:01:45]}  Be6 {[%clk 0:01:38]} 27. Bxe6 {[%clk 0:01:39]}  fxe6 {[%clk 0:01:38]} 28. Ne4 {[%clk 0:01:40]}  Rxb2 {[%clk 0:01:35]} 29. Rad1 {[%clk 0:01:40]}  Rxa2 {[%clk 0:01:24]} 30. Rd7 {[%clk 0:01:35]}  Rb2 {[%clk 0:01:23]} 31. Ng5 {[%clk 0:01:14]}  Rf6 {[%clk 0:01:12]} 32. Rd8+ {[%clk 0:01:11]}  Rf8 {[%clk 0:01:05]} 33. Rxf8+ {[%clk 0:01:06]}  Bxf8 {[%clk 0:01:02]} 34. Rd1 {[%clk 0:01:02]}  Rb5 {[%clk 0:00:43]} 35. Nxe6 {[%clk 0:00:56]}  Rd5 {[%clk 0:00:43]} 36. Rb1 {[%clk 0:00:52]}  b6 {[%clk 0:00:37]} 37. f4 {[%clk 0:00:50]}  Bc5 {[%clk 0:00:21]} 38. Kf2 {[%clk 0:00:49]}  b5 {[%clk 0:00:17]} 39. Rc1 {[%clk 0:00:44]}  Bb6 {[%clk 0:00:13]} 40. Rxc6 {[%clk 0:00:45]} 1-0


[Site "https://www.chess.com"]

[Event "Titled Tuesday Blitz November 01 Late 2022"]
[White "Boruchovsky, Avital"]
[Black "Deac, Bogdan-Daniel"]
[WhiteFideId "2800055"]
[BlackFideId "1226380"]
[WhiteElo "2466"]
[BlackElo "2648"]
[Result "1-0"]
[Round "04"]
[TimeControl "180+1"]
[Date "2022.11.01"]
[WhiteClock "0:00:11"]
[BlackClock "0:00:03"]

1. Nf3 {[%clk 0:03:00]}  d5 {[%clk 0:02:59]} 2. g3 {[%clk 0:03:01]}  Nf6 {[%clk 0:02:58]} 3. Bg2 {[%clk 0:03:01]}  e6 {[%clk 0:02:58]} 4. O-O {[%clk 0:03:02]}  Be7 {[%clk 0:02:59]} 5. c4 {[%clk 0:03:01]}  O-O {[%clk 0:03:00]} 6. b3 {[%clk 0:03:01]}  c5 {[%clk 0:02:59]} 7. Bb2 {[%clk 0:03:00]}  Nc6 {[%clk 0:03:00]} 8. d4 {[%clk 0:02:59]}  dxc4 {[%clk 0:02:32]} 9. bxc4 {[%clk 0:03:00]}  Qb6 {[%clk 0:02:18]} 10. Qb3 {[%clk 0:02:55]}  cxd4 {[%clk 0:02:17]} 11. Qxb6 {[%clk 0:02:51]}  axb6 {[%clk 0:02:18]} 12. Nxd4 {[%clk 0:02:46]}  Bd7 {[%clk 0:02:19]} 13. Nd2 {[%clk 0:02:34]}  Rfc8 {[%clk 0:02:15]} 14. Nb5 {[%clk 0:02:26]}  Na5 {[%clk 0:02:14]} 15. Rac1 {[%clk 0:01:25]}  Bb4 {[%clk 0:01:30]} 16. Rfd1 {[%clk 0:00:42]}  Bxd2 {[%clk 0:00:58]} 17. Rxd2 {[%clk 0:00:40]}  Rxc4 {[%clk 0:00:35]} 18. Nd6 {[%clk 0:00:22]}  Rxc1+ {[%clk 0:00:30]} 19. Bxc1 {[%clk 0:00:23]}  Bc6 {[%clk 0:00:30]} 20. e4 {[%clk 0:00:23]}  b5 {[%clk 0:00:24]} 21. e5 {[%clk 0:00:20]}  Nd7 {[%clk 0:00:16]} 22. f4 {[%clk 0:00:16]}  Nb6 {[%clk 0:00:06]} 23. Rc2 {[%clk 0:00:11]}  Nac4 {[%clk 0:00:04]} 24. Bf1 {[%clk 0:00:11]}  Nxd6 {[%clk 0:00:03]} 25. exd6 {[%clk 0:00:12]}  Kf8 {[%clk 0:00:04]} 26. Be3 {[%clk 0:00:12]}  Nd5 {[%clk 0:00:03]} 27. Bc5 {[%clk 0:00:12]}  Ke8 {[%clk 0:00:04]} 28. Rb2 {[%clk 0:00:12]}  Kd7 {[%clk 0:00:04]} 29. a3 {[%clk 0:00:12]}  Rxa3 {[%clk 0:00:03]} 30. Bxa3 {[%clk 0:00:11]} 1-0


[Site "https://www.chess.com"]

[Event "Titled Tuesday Blitz November 01 Late 2022"]
[White "Buchenau, Frank"]
[Black "Joubert, Dantelle"]
[WhiteFideId "4604350"]
[BlackFideId "14310813"]
[WhiteElo "2157"]
[BlackElo "1507"]
[Result "1-0"]
[Round "04"]
[TimeControl "180+1"]
[Date "2022.11.02"]
[WhiteClock "0:01:36"]
[BlackClock "0:00:01"]

1. e4 {[%clk 0:03:00]}  e5 {[%clk 0:02:59]} 2. Bc4 {[%clk 0:03:00]}  Nc6 {[%clk 0:02:56]} 3. Nf3 {[%clk 0:03:00]}  Bc5 {[%clk 0:02:54]} 4. c3 {[%clk 0:02:59]}  Nf6 {[%clk 0:02:53]} 5. d3 {[%clk 0:03:00]}  O-O {[%clk 0:02:49]} 6. O-O {[%clk 0:03:00]}  a6 {[%clk 0:02:48]} 7. Nbd2 {[%clk 0:02:58]}  Ba7 {[%clk 0:02:36]} 8. Re1 {[%clk 0:02:56]}  d6 {[%clk 0:02:35]} 9. h3 {[%clk 0:02:55]}  Be6 {[%clk 0:02:29]} 10. Bxe6 {[%clk 0:02:47]}  fxe6 {[%clk 0:02:26]} 11. Nf1 {[%clk 0:02:47]}  Nh5 {[%clk 0:02:14]} 12. Be3 {[%clk 0:02:41]}  Nf4 {[%clk 0:02:08]} 13. d4 {[%clk 0:02:36]}  exd4 {[%clk 0:01:47]} 14. cxd4 {[%clk 0:02:35]}  Qe7 {[%clk 0:01:41]} 15. Ng3 {[%clk 0:02:22]}  h6 {[%clk 0:01:24]} 16. Rc1 {[%clk 0:02:19]}  Qf7 {[%clk 0:01:21]} 17. Kh2 {[%clk 0:02:02]}  Rac8 {[%clk 0:01:10]} 18. d5 {[%clk 0:01:53]}  Bxe3 {[%clk 0:00:59]} 19. fxe3 {[%clk 0:01:52]}  e5 {[%clk 0:00:15]} 20. dxc6 {[%clk 0:01:48]}  Nxh3 {[%clk 0:00:11]} 21. Kxh3 {[%clk 0:01:44]}  bxc6 {[%clk 0:00:03]} 22. Nf5 {[%clk 0:01:37]}  Qd7 {[%clk 0:00:01]} 23. Kh2 {[%clk 0:01:36]} 1-0


[Site "https://www.chess.com"]

[Event "Titled Tuesday Blitz November 01 Late 2022"]
[White "Budisavljevic, Luka"]
[Black "Bazeev, German"]
[WhiteFideId "960047"]
[BlackFideId "24119350"]
[WhiteElo "2424"]
[BlackElo "2493"]
[Result "1/2-1/2"]
[Round "04"]
[TimeControl "180+1"]
[Date "2022.11.02"]
[WhiteClock "0:00:20"]
[BlackClock "0:00:14"]

1. c4 {[%clk 0:03:00]}  e5 {[%clk 0:02:47]} 2. Nc3 {[%clk 0:02:58]}  Nf6 {[%clk 0:02:45]} 3. e3 {[%clk 0:02:54]}  Bb4 {[%clk 0:02:42]} 4. Qc2 {[%clk 0:02:49]}  O-O {[%clk 0:02:24]} 5. Nge2 {[%clk 0:02:49]}  Re8 {[%clk 0:02:23]} 6. a3 {[%clk 0:02:48]}  Bf8 {[%clk 0:02:18]} 7. b4 {[%clk 0:02:44]}  a5 {[%clk 0:01:59]} 8. b5 {[%clk 0:02:37]}  b6 {[%clk 0:01:58]} 9. Ng3 {[%clk 0:02:34]}  Bb7 {[%clk 0:01:58]} 10. Bb2 {[%clk 0:02:31]}  d6 {[%clk 0:01:55]} 11. f3 {[%clk 0:02:31]}  Nbd7 {[%clk 0:01:55]} 12. Be2 {[%clk 0:02:30]}  g6 {[%clk 0:01:47]} 13. O-O {[%clk 0:02:28]}  h5 {[%clk 0:01:48]} 14. Rae1 {[%clk 0:02:22]}  Bh6 {[%clk 0:01:36]} 15. Bd1 {[%clk 0:02:17]}  h4 {[%clk 0:01:30]} 16. Nge4 {[%clk 0:02:14]}  Nh5 {[%clk 0:01:31]} 17. d4 {[%clk 0:02:05]}  exd4 {[%clk 0:01:30]} 18. exd4 {[%clk 0:02:05]}  Nf4 {[%clk 0:01:21]} 19. Ne2 {[%clk 0:01:48]}  f5 {[%clk 0:01:11]} 20. Nxf4 {[%clk 0:01:44]}  Bxf4 {[%clk 0:01:06]} 21. Nf2 {[%clk 0:01:42]}  Rxe1 {[%clk 0:00:57]} 22. Rxe1 {[%clk 0:01:42]}  Qf8 {[%clk 0:00:57]} 23. Nd3 {[%clk 0:01:35]}  Bh6 {[%clk 0:00:55]} 24. c5 {[%clk 0:01:28]}  Bd5 {[%clk 0:00:50]} 25. Qf2 {[%clk 0:01:11]}  Bg5 {[%clk 0:00:47]} 26. c6 {[%clk 0:01:08]}  Nf6 {[%clk 0:00:45]} 27. Nc1 {[%clk 0:01:06]}  h3 {[%clk 0:00:41]} 28. Bb3 {[%clk 0:01:03]}  Qf7 {[%clk 0:00:35]} 29. Bxd5 {[%clk 0:01:02]}  Qxd5 {[%clk 0:00:36]} 30. gxh3 {[%clk 0:00:57]}  Kf7 {[%clk 0:00:31]} 31. Ne2 {[%clk 0:00:56]}  Re8 {[%clk 0:00:29]} 32. Nc3 {[%clk 0:00:51]}  Rxe1+ {[%clk 0:00:28]} 33. Qxe1 {[%clk 0:00:51]}  Qxf3 {[%clk 0:00:28]} 34. Nd1 {[%clk 0:00:48]}  Ne4 {[%clk 0:00:29]} 35. d5 {[%clk 0:00:41]}  Qxh3 {[%clk 0:00:25]} 36. Bd4 {[%clk 0:00:41]}  Bf4 {[%clk 0:00:24]} 37. Qe2 {[%clk 0:00:39]}  Qxa3 {[%clk 0:00:21]} 38. Nf2 {[%clk 0:00:32]}  Qc1+ {[%clk 0:00:12]} 39. Kg2 {[%clk 0:00:32]}  Qb1 {[%clk 0:00:12]} 40. Nxe4 {[%clk 0:00:30]}  Qxe4+ {[%clk 0:00:13]} 41. Qxe4 {[%clk 0:00:30]}  fxe4 {[%clk 0:00:14]} 42. Bxb6 {[%clk 0:00:31]}  a4 {[%clk 0:00:13]} 43. Bxc7 {[%clk 0:00:30]}  a3 {[%clk 0:00:13]} 44. Ba5 {[%clk 0:00:28]}  Be5 {[%clk 0:00:10]} 45. c7 {[%clk 0:00:28]}  a2 {[%clk 0:00:11]} 46. c8=Q {[%clk 0:00:28]}  a1=Q {[%clk 0:00:11]} 47. Qe6+ {[%clk 0:00:27]}  Kg7 {[%clk 0:00:12]} 48. Qe7+ {[%clk 0:00:25]}  Kg8 {[%clk 0:00:10]} 49. Qe6+ {[%clk 0:00:18]}  Kh7 {[%clk 0:00:10]} 50. Qe7+ {[%clk 0:00:18]}  Kg8 {[%clk 0:00:09]} 51. Qe8+ {[%clk 0:00:18]}  Kh7 {[%clk 0:00:10]} 52. Qe7+ {[%clk 0:00:17]}  Bg7 {[%clk 0:00:09]} 53. Bd2 {[%clk 0:00:16]}  Qb2 {[%clk 0:00:08]} 54. Qg5 {[%clk 0:00:16]}  Qxb5 {[%clk 0:00:07]} 55. h4 {[%clk 0:00:14]}  Qd3 {[%clk 0:00:06]} 56. h5 {[%clk 0:00:14]}  Qf3+ {[%clk 0:00:06]} 57. Kg1 {[%clk 0:00:14]}  Qxh5 {[%clk 0:00:07]} 58. Qxh5+ {[%clk 0:00:14]}  gxh5 {[%clk 0:00:08]} 59. Kf2 {[%clk 0:00:15]}  Be5 {[%clk 0:00:08]} 60. Ke3 {[%clk 0:00:15]}  h4 {[%clk 0:00:08]} 61. Kxe4 {[%clk 0:00:16]}  h3 {[%clk 0:00:09]} 62. Kf3 {[%clk 0:00:16]}  h2 {[%clk 0:00:10]} 63. Kg2 {[%clk 0:00:16]}  Kg6 {[%clk 0:00:10]} 64. Bb4 {[%clk 0:00:15]}  Kf5 {[%clk 0:00:11]} 65. Bxd6 {[%clk 0:00:16]}  Bxd6 {[%clk 0:00:12]} 66. Kh1 {[%clk 0:00:16]}  Ke4 {[%clk 0:00:13]} 67. Kg2 {[%clk 0:00:17]}  Kxd5 {[%clk 0:00:13]} 68. Kh1 {[%clk 0:00:18]}  Ke4 {[%clk 0:00:14]} 69. Kg2 {[%clk 0:00:19]}  h1=Q+ {[%clk 0:00:14]} 70. Kxh1 {[%clk 0:00:20]} 1/2-1/2


[Site "https://www.chess.com"]

[Event "Titled Tuesday Blitz November 01 Late 2022"]
[White "Castellanos Gomez, Alejandro"]
[Black "Pace, Christopher"]
[WhiteFideId "22284141"]
[BlackFideId "2610167"]
[WhiteElo "2168"]
[BlackElo "2291"]
[Result "1-0"]
[Round "04"]
[TimeControl "180+1"]
[Date "2022.11.02"]
[WhiteClock "0:00:03"]
[BlackClock "0:00:15"]

1. d4 {[%clk 0:03:00]}  Nf6 {[%clk 0:02:59]} 2. Bf4 {[%clk 0:03:01]}  d5 {[%clk 0:02:57]} 3. e3 {[%clk 0:03:01]}  c5 {[%clk 0:02:57]} 4. c3 {[%clk 0:03:01]}  Nc6 {[%clk 0:02:56]} 5. Nd2 {[%clk 0:03:01]}  cxd4 {[%clk 0:02:56]} 6. exd4 {[%clk 0:03:00]}  Bf5 {[%clk 0:02:57]} 7. Qb3 {[%clk 0:02:58]}  Qb6 {[%clk 0:02:57]} 8. Ngf3 {[%clk 0:02:54]}  e6 {[%clk 0:02:54]} 9. Be2 {[%clk 0:02:49]}  Be7 {[%clk 0:02:54]} 10. O-O {[%clk 0:02:49]}  O-O {[%clk 0:02:53]} 11. Rfe1 {[%clk 0:02:46]}  Rfc8 {[%clk 0:02:34]} 12. h3 {[%clk 0:02:39]}  Ne4 {[%clk 0:02:29]} 13. Nxe4 {[%clk 0:02:32]}  Bxe4 {[%clk 0:02:29]} 14. Nd2 {[%clk 0:02:32]}  Bg6 {[%clk 0:02:29]} 15. Bf3 {[%clk 0:02:26]}  Na5 {[%clk 0:02:24]} 16. Qxb6 {[%clk 0:02:17]}  axb6 {[%clk 0:02:25]} 17. Bxd5 {[%clk 0:02:09]}  b5 {[%clk 0:02:24]} 18. a3 {[%clk 0:01:40]}  Bf8 {[%clk 0:02:18]} 19. Bf3 {[%clk 0:01:35]}  h6 {[%clk 0:02:12]} 20. d5 {[%clk 0:01:16]}  exd5 {[%clk 0:02:12]} 21. Bxd5 {[%clk 0:01:06]}  Rd8 {[%clk 0:02:12]} 22. Bf3 {[%clk 0:00:59]}  Rd7 {[%clk 0:01:58]} 23. Bg4 {[%clk 0:00:45]}  Rxd2 {[%clk 0:01:46]} 24. Bxd2 {[%clk 0:00:44]}  Nb3 {[%clk 0:01:46]} 25. Rad1 {[%clk 0:00:39]}  Bc2 {[%clk 0:01:46]} 26. Be3 {[%clk 0:00:31]}  Bxd1 {[%clk 0:01:46]} 27. Rxd1 {[%clk 0:00:31]}  Na5 {[%clk 0:01:43]} 28. Bf3 {[%clk 0:00:29]}  Nc4 {[%clk 0:01:42]} 29. Bc1 {[%clk 0:00:29]}  Rb8 {[%clk 0:01:30]} 30. Rd7 {[%clk 0:00:28]}  Ne5 {[%clk 0:01:25]} 31. Rd5 {[%clk 0:00:23]}  Nxf3+ {[%clk 0:01:01]} 32. gxf3 {[%clk 0:00:23]}  Re8 {[%clk 0:00:57]} 33. Kf1 {[%clk 0:00:23]}  b4 {[%clk 0:00:35]} 34. axb4 {[%clk 0:00:22]}  Ra8 {[%clk 0:00:35]} 35. Rd1 {[%clk 0:00:19]}  Ra2 {[%clk 0:00:35]} 36. Ke2 {[%clk 0:00:19]}  g6 {[%clk 0:00:30]} 37. Kd3 {[%clk 0:00:19]}  Kg7 {[%clk 0:00:28]} 38. Kc4 {[%clk 0:00:19]}  Kf6 {[%clk 0:00:28]} 39. Kb3 {[%clk 0:00:19]}  Ra6 {[%clk 0:00:28]} 40. Be3 {[%clk 0:00:19]}  Kf5 {[%clk 0:00:26]} 41. Rd5+ {[%clk 0:00:17]}  Kf6 {[%clk 0:00:20]} 42. Rb5 {[%clk 0:00:15]}  Ra1 {[%clk 0:00:19]} 43. Rxb7 {[%clk 0:00:14]}  Rh1 {[%clk 0:00:17]} 44. Bd4+ {[%clk 0:00:13]}  Ke6 {[%clk 0:00:17]} 45. Rb6+ {[%clk 0:00:12]}  Kf5 {[%clk 0:00:18]} 46. Rb7 {[%clk 0:00:09]}  Ke6 {[%clk 0:00:16]} 47. Rb6+ {[%clk 0:00:10]}  Kf5 {[%clk 0:00:16]} 48. Rb5+ {[%clk 0:00:10]}  Ke6 {[%clk 0:00:17]} 49. Rb8 {[%clk 0:00:05]}  Bd6 {[%clk 0:00:16]} 50. Re8+ {[%clk 0:00:04]}  Kd7 {[%clk 0:00:17]} 51. Rh8 {[%clk 0:00:04]}  h5 {[%clk 0:00:17]} 52. Rh7 {[%clk 0:00:02]}  Ke6 {[%clk 0:00:17]} 53. Be3 {[%clk 0:00:02]}  Rxh3 {[%clk 0:00:17]} 54. f4 {[%clk 0:00:03]}  Bc7 {[%clk 0:00:14]} 55. b5 {[%clk 0:00:03]}  Bxf4 {[%clk 0:00:14]} 56. Bxf4 {[%clk 0:00:03]}  f6 {[%clk 0:00:14]} 57. Be3 {[%clk 0:00:03]}  g5 {[%clk 0:00:15]} 58. b6 {[%clk 0:00:03]} 1-0


[Site "https://www.chess.com"]